lending/lending_fUSD_20250121
["ID","MTS","AMOUNT","RATE_DAILY","PERIOD"]
[349788035,1737430245774,-1060.16570752,0.0002192,2]
[349788036,1737430245783,-1060.16570752,0.0002192,2]
[349788037,1737430245793,-1060.16570752,0.0002192,2]
[349788038,1737430245802,-1060.16570752,0.0002192,2]
[349788039,1737430245811,-1060.16570752,0.0002192,2]
[349788041,1737430245820,-1060.16570752,0.0002192,2]
[349788043,1737430245830,-1060.16570752,0.0002192,2]
[349788045,1737430245839,-1060.16570752,0.0002192,2]
[349788046,1737430245848,-1060.16570752,0.0002192,2]
[349788047,1737430245857,-1060.16570752,0.0002192,2]
[349788048,1737430245867,-1060.16570752,0.0002192,2]
[349788049,1737430245877,-1060.16570752,0.0002192,2]
[349788050,1737430245886,-1060.16570752,0.0002192,2]
[349788051,1737430245895,-1060.16570752,0.0002192,2]
[349788052,1737430245904,-1060.16570752,0.0002192,2]
[349788053,1737430245913,-1060.16,0.0002192,2]
[349788054,1737430245922,-2473.71998421,0.0002192,2]
[349788055,1737430245931,-2473.71998421,0.0002192,2]
[349788056,1737430245940,-2473.71998421,0.0002192,2]
[349788057,1737430245950,-2473.71998421,0.0002192,2]
[349788058,1737430245960,-2473.71998421,0.0002192,2]
[349788059,1737430245969,-2473.71998421,0.0002192,2]
[349788060,1737430245979,-2473.71998421,0.0002192,2]
[349788061,1737430245988,-2473.71998421,0.0002192,2]
[349788062,1737430245997,-2473.71998421,0.0002192,2]
[349788063,1737430246007,-2473.71998421,0.0002192,2]
[349788064,1737430246017,-2473.71998421,0.0002192,2]
[349788065,1737430246027,-2473.71998421,0.0002192,2]
[349788066,1737430246038,-2473.71998421,0.0002192,2]
[349788067,1737430246048,-2473.71998421,0.0002192,2]
[349788068,1737430246058,-2473.71998421,0.0002192,2]
[349788069,1737430246068,-2473.71998421,0.0002192,2]
[349788070,1737430246080,-2473.71998421,0.0002192,2]
[349788071,1737430246090,-2473.71998421,0.0002192,2]
[349788072,1737430246099,-2473.71998421,0.0002192,2]
[349788073,1737430246109,-2473.71,0.0002192,2]
[349788074,1737430246120,-537.75378843,0.0002192,2]
[349788075,1737430246130,-537.75378843,0.0002192,2]
[349788076,1737430246140,-537.75378843,0.0002192,2]
[349788077,1737430246149,-537.75378843,0.0002192,2]
[349788078,1737430246159,-537.75378843,0.0002192,2]
[349788079,1737430246169,-537.75378843,0.0002192,2]
[349788080,1737430246179,-537.75378843,0.0002192,2]
[349788081,1737430246188,-537.75378843,0.0002192,2]
[349788082,1737430246198,-537.75378843,0.0002192,2]
[349788083,1737430246207,-537.75378843,0.0002192,2]
[349788084,1737430246217,-537.75378843,0.0002192,2]
[349788085,1737430246227,-537.75378843,0.0002192,2]
[349788086,1737430246236,-537.75378843,0.0002192,2]
[349788087,1737430246247,-537.75378843,0.0002192,2]
[349788088,1737430246256,-537.75378843,0.0002192,2]
[349788089,1737430246265,-537.75378843,0.0002192,2]
[349788090,1737430246274,-537.75378843,0.0002192,2]
[349788091,1737430246284,-537.75378843,0.0002192,2]
[349788092,1737430246293,-537.75378843,0.0002192,2]
[349788093,1737430246303,-537.75,0.0002192,2]
[349788094,1737430246312,-1254.75883966,0.0002192,2]
[349788095,1737430246322,-1254.75883966,0.0002192,2]
[349788096,1737430246331,-1254.75883966,0.0002192,2]
[349788097,1737430246340,-1254.75883966,0.0002192,2]
[349788098,1737430246349,-1254.75883966,0.0002192,2]
[349788099,1737430246359,-1254.75883966,0.0002192,2]
[349788100,1737430246369,-1254.75883966,0.0002192,2]
[349788101,1737430246379,-1254.75883966,0.0002192,2]
[349788102,1737430246389,-1254.75883966,0.0002192,2]
[349788103,1737430246530,-1254.75883966,0.0002192,2]
[349788104,1737430246540,-1254.75883966,0.0002192,2]
[349788105,1737430246552,-1254.75883966,0.0002192,2]
[349788106,1737430246561,-1254.75883966,0.0002192,2]
[349788107,1737430246572,-1254.75883966,0.0002192,2]
[349788108,1737430246581,-1254.75883966,0.0002192,2]
[349788109,1737430246591,-1254.75883966,0.0002192,2]
[349788110,1737430246601,-1254.75883966,0.0002192,2]
[349788111,1737430246610,-1254.75883966,0.0002192,2]
[349788112,1737430246619,-1254.75883966,0.0002192,2]
[349788113,1737430246631,-1254.75,0.0002192,2]
[349788114,1737430246640,-150.0,0.00021929,2]
[349788115,1737430246649,-150.0,0.00021929,2]
[349788116,1737430246659,-150.0,0.0002193,2]
[349788117,1737430246668,-1099.0,0.0002193,2]
[349788118,1737430246678,-150.0,0.00021931,2]
[349788119,1737430246687,-150.0,0.00021932,2]
[349788120,1737430246697,-39538.68693111,0.00021934,2]
[349788121,1737430246706,-150.0,0.0002194,2]
[349788122,1737430246716,-150.0,0.00021942,2]
[349788123,1737430246725,-150.0,0.00021956,2]
[349788124,1737430246734,-150.0,0.00021961,2]
[349788125,1737430246743,-300.0,0.00021961,2]
[349788126,1737430246753,-150.0,0.00021964,2]
[349788127,1737430246762,-184.51179674,0.00021965,2]
[349788128,1737430246771,-1148.4149402,0.0002197,2]
[349788129,1737430246781,-400.0,0.0002197,2]
[349788130,1737430246791,-478.27153247,0.0002197,2]
[349788131,1737430246801,-150.0,0.00021973,4]
[349788132,1737430246811,-519.2101584,0.00021973,2]
[349788133,1737430246820,-500.0,0.00021973,2]
[349788134,1737430246829,-322887.60160975,0.0002198,2]
[349788135,1737430246840,-106064.8013036,0.0002199,14]
[349788136,1737430246850,-200.0,0.0002199,8]
[349788137,1737430246860,-150.0,0.00021993,2]
[349788138,1737430246869,-896.55522008,0.00021997,2]
[349788139,1737430246879,-150.0,0.00021997,2]
[349788140,1737430246888,-395289.22819909,0.00021998,2]
[349788141,1737430246898,-2000.0,0.00021999,2]
[349788142,1737430246908,-2000.0,0.00021999,2]
[349788143,1737430246917,-2000.0,0.00021999,2]
[349788144,1737430246927,-2000.0,0.00021999,2]
[349788145,1737430246937,-2000.0,0.00021999,2]
[349788146,1737430246947,-2000.0,0.00021999,2]
[349788147,1737430246956,-506.67506671,0.00021999,2]
[349788148,1737430246965,-507.99702394,0.00021999,2]
[349788149,1737430246975,-673.59653589,0.00021999,2]
[349788150,1737430246984,-496.0,0.00021999,2]
[349788151,1737430246994,-500.0,0.00021999,2]
[349788152,1737430247003,-500.0,0.00021999,2]
[349788153,1737430247012,-500.0,0.00021999,2]
[349788154,1737430247024,-494.0,0.00021999,2]
[349788155,1737430247033,-525.50437458,0.00021999,2]
[349788156,1737430247042,-500.0,0.00021999,2]
[349788157,1737430247051,-500.0,0.00021999,2]
[349788158,1737430247060,-500.0,0.00021999,2]
[349788159,1737430247069,-500.0,0.00021999,2]
[349788160,1737430247079,-500.0,0.00021999,2]
[349788161,1737430247088,-500.0,0.00021999,2]
[349788162,1737430247098,-516.79206882,0.00021999,2]
[349788163,1737430247107,-500.0,0.00021999,2]
[349788164,1737430247118,-194.49618961,0.00021999,2]
[349788165,1737430247128,-500.0,0.00021999,2]
[349788166,1737430247137,-500.0,0.00021999,2]
[349788167,1737430247146,-500.0,0.00021999,2]
[349788168,1737430247156,-500.0,0.00021999,2]
[349788169,1737430247165,-509.09999664,0.00021999,2]
[349788170,1737430247174,-510.77,0.00021999,2]
[349788171,1737430247184,-500.0,0.00021999,2]
[349788172,1737430247193,-511.98032552,0.00021999,2]
[349788173,1737430247203,-500.0,0.00021999,2]
[349788174,1737430247213,-500.0,0.00021999,2]
[349788175,1737430247222,-500.0,0.00021999,2]
[349788176,1737430247231,-500.0,0.00021999,2]
[349788177,1737430247241,-506.93000036,0.00021999,2]
[349788178,1737430247250,-500.0,0.00021999,2]
[349788179,1737430247259,-515.52,0.00021999,2]
[349788180,1737430247269,-513.36710703,0.00021999,2]
[349788181,1737430247278,-500.0,0.00021999,2]
[349788182,1737430247287,-500.0,0.00021999,2]
[349788183,1737430247297,-654.31,0.00021999,2]
[349788184,1737430247308,-689.48,0.00021999,2]
[349788185,1737430247317,-500.0,0.00021999,2]
[349788186,1737430247326,-521.69407725,0.00021999,2]
[349788187,1737430247335,-500.0,0.00021999,2]
[349788188,1737430247345,-500.0,0.00021999,2]
[349788189,1737430247354,-508.10629164,0.00021999,2]
[349788190,1737430247363,-1237.82,0.00021999,2]
[349788191,1737430247373,-500.0,0.00021999,2]
[349788192,1737430247384,-510.21862908,0.00021999,2]
[349788193,1737430247394,-693.91,0.00021999,2]
[349788194,1737430247404,-512.2243285,0.00021999,2]
[349788195,1737430247413,-500.0,0.00021999,2]
[349788196,1737430247423,-500.0,0.00021999,2]
[349788197,1737430247432,-500.0,0.00021999,2]
[349788198,1737430247443,-500.0,0.00021999,2]
[349788199,1737430247452,-516.93130248,0.00021999,2]
[349788200,1737430247461,-500.0,0.00021999,2]
[349788201,1737430247471,-500.0,0.00021999,2]
[349788202,1737430247480,-800.1,0.00021999,2]
[349788203,1737430247489,-500.0,0.00021999,2]
[349788204,1737430247499,-500.0,0.00021999,2]
[349788205,1737430247508,-505.97192552,0.00021999,2]
[349788206,1737430247518,-500.0,0.00021999,2]
[349788207,1737430247527,-1031.31,0.00021999,2]
[349788208,1737430247537,-726.44,0.00021999,2]
[349788209,1737430247546,-500.0,0.00021999,2]
[349788210,1737430247555,-500.0,0.00021999,2]
[349788211,1737430247565,-500.0,0.00021999,2]
[349788212,1737430247575,-500.0,0.00021999,2]
[349788213,1737430247584,-655.77,0.00021999,2]
[349788214,1737430247594,-500.0,0.00021999,2]
[349788215,1737430247603,-113517.45058512,0.00021999,2]
[349788216,1737430247613,-500.0,0.00021999,2]
[349788217,1737430247623,-500.0,0.00021999,2]
[349788218,1737430247633,-500.0,0.00021999,2]
[349788219,1737430247643,-1124.38,0.00021999,2]
[349788220,1737430247652,-500.0,0.00021999,2]
[349788221,1737430247662,-1699.49,0.00021999,2]
[349788222,1737430247671,-500.0,0.00021999,2]
[349788223,1737430247680,-500.0,0.00021999,2]
[349788224,1737430247689,-500.0,0.00021999,2]
[349788225,1737430247699,-1397.1088611,0.00021999,2]
[349788226,1737430247708,-1325.24,0.00021999,2]
[349788227,1737430247718,-500.0,0.00021999,2]
[349788228,1737430247727,-500.0,0.00021999,2]
[349788229,1737430247737,-500.0,0.00021999,2]
[349788230,1737430247747,-500.0,0.00021999,2]
[349788231,1737430247756,-500.0,0.00021999,2]
[349788232,1737430247766,-500.0,0.00021999,2]
[349788233,1737430247775,-500.0,0.00021999,2]
[349788234,1737430247785,-500.0,0.00021999,2]
[349788235,1737430247794,-500.0,0.00021999,2]
[349788236,1737430247803,-500.0,0.00021999,2]
[349788237,1737430247812,-407.27023133,0.00021999,2]
[349788238,1737430247822,-500.0,0.00021999,2]
[349788239,1737430247832,-500.0,0.00021999,2]
[349788240,1737430247842,-500.0,0.00021999,2]
[349788241,1737430247852,-500.0,0.00021999,2]
[349788242,1737430247861,-660.63,0.00021999,2]
[349788243,1737430247870,-1121.89,0.00021999,2]
[349788244,1737430247882,-500.0,0.00021999,2]
[349788245,1737430247891,-500.0,0.00021999,2]
[349788246,1737430247900,-500.0,0.00021999,2]
[349788247,1737430247910,-500.0,0.00021999,2]
[349788248,1737430247919,-500.0,0.00021999,2]
[349788249,1737430247929,-500.0,0.00021999,2]
[349788250,1737430247938,-500.0,0.00021999,2]
[349788251,1737430247948,-500.0,0.00021999,2]
[349788252,1737430247958,-551.03,0.00021999,2]
[349788253,1737430247967,-500.0,0.00021999,2]
[349788254,1737430247976,-310.33894258,0.00021999,2]
[349788255,1737430247985,-1305.35,0.00021999,2]
[349788256,1737430247995,-849.54,0.00021999,2]
[349788257,1737430248004,-500.0,0.00021999,2]
[349788258,1737430248013,-2428.49,0.00021999,2]
[349788259,1737430248023,-500.0,0.00021999,2]
[349788260,1737430248033,-500.0,0.00021999,2]
[349788261,1737430248045,-500.0,0.00021999,2]
[349788262,1737430248054,-1057.26,0.00021999,2]
[349788263,1737430248064,-745.56,0.00021999,2]
[349788264,1737430248073,-500.0,0.00021999,2]
[349788265,1737430248084,-500.0,0.00021999,2]
[349788266,1737430248095,-500.0,0.00021999,2]
[349788267,1737430248105,-500.0,0.00021999,2]
[349788268,1737430248114,-1436.14,0.00021999,2]
[349788269,1737430248125,-500.0,0.00021999,2]
[349788270,1737430248135,-552.04,0.00021999,2]
[349788271,1737430248145,-503.66773774,0.00021999,2]
[349788272,1737430248155,-500.0,0.00021999,2]
[349788273,1737430248164,-913.36,0.00021999,2]
[349788274,1737430248173,-500.0,0.00021999,2]
[349788275,1737430248182,-513.63101253,0.00021999,2]
[349788276,1737430248192,-1649.66,0.00021999,2]
[349788277,1737430248201,-500.0,0.00021999,2]
[349788278,1737430248210,-505.6582109,0.00021999,2]
[349788279,1737430248219,-500.0,0.00021999,2]
[349788280,1737430248228,-500.0,0.00021999,2]
[349788281,1737430248243,-508.63567815,0.00021999,2]
[349788282,1737430248252,-500.0,0.00021999,2]
[349788283,1737430248261,-1595.72,0.00021999,2]
[349788284,1737430248271,-500.0,0.00021999,2]
[349788285,1737430248280,-500.0,0.00021999,2]
[349788286,1737430248290,-500.0,0.00021999,2]
[349788287,1737430248299,-500.0,0.00021999,2]
[349788288,1737430248309,-500.0,0.00021999,2]
[349788289,1737430248318,-513.62,0.00021999,2]
[349788290,1737430248328,-1075.44,0.00021999,2]
[349788291,1737430248337,-500.0,0.00021999,2]
[349788292,1737430248346,-529.16,0.00021999,2]
[349788293,1737430248355,-500.0,0.00021999,2]
[349788294,1737430248364,-773.0,0.00021999,2]
[349788295,1737430248374,-588.49,0.00021999,2]
[349788296,1737430248384,-507.33704223,0.00021999,2]
[349788297,1737430248394,-1928.5,0.00021999,2]
[349788298,1737430248403,-1001.06,0.00021999,2]
[349788299,1737430248412,-500.0,0.00021999,2]
[349788300,1737430248422,-150.0,0.00021999,2]
[349788301,1737430248431,-500.0,0.00021999,2]
[349788302,1737430248442,-500.0,0.00021999,2]
[349788303,1737430248452,-986.65,0.00021999,2]
[349788304,1737430248461,-1551.0,0.00021999,2]
[349788305,1737430248471,-846.75653391,0.00021999,2]
[349788306,1737430248481,-8859504.45415681,0.00022,2]
[349788307,1737430248490,-5108706.28761966,0.00022,2]
[349788308,1737430248499,-212.0,0.00022,2]
[349788309,1737430248509,-2386.65637307,0.00022,7]
[349788310,1737430248518,-212.0,0.00022,2]
[349788311,1737430248527,-9000.0,0.00022,2]
[349788312,1737430248536,-209.0,0.00022,2]
[349788313,1737430248546,-210.0,0.00022,2]
[349788314,1737430248556,-208.0,0.00022,2]
[349788315,1737430248566,-2110.0,0.00022,2]
[349788316,1737430248575,-2613.873,0.00022,2]
[349788317,1737430248585,-2259.49218366,0.00022,5]
[349788318,1737430248595,-932588.43003964,0.00022,2]
[349788319,1737430248791,-1586.28493901,0.00022,2]
[349788320,1737430249037,-500.0,0.00019178,2]
[349788321,1737430249053,-500.0,0.00019178,2]
[349788322,1737430249063,-500.0,0.00019178,2]
[349788323,1737430249077,-500.0,0.00019452,2]
[349788324,1737430249088,-500.0,0.00019452,2]
[349788325,1737430249098,-500.0,0.00019452,2]
[349788326,1737430249108,-500.0,0.00019726,2]
[349788327,1737430249120,-500.0,0.00019726,2]
[349788328,1737430249135,-500.0,0.0002,2]
[349788329,1737430249146,-500.0,0.0002,2]
[349788330,1737430249156,-143.81959414,0.00020273,2]
[349788331,1737430249181,-356.18040586,0.00020273,2]
[349788332,1737430249192,-191.46015416,0.00020273,2]
[349788333,1737430249560,-500.0,0.00019178,2]
[349788334,1737430249569,-101.7856,0.00019178,2]
[349788335,1737430249598,-364.55039,0.00019178,2]
[349788336,1737430249610,-33.66401,0.00019178,2]
[349788337,1737430249619,-503.97252226,0.00019178,2]
[349788338,1737430249630,-500.0,0.00019452,2]
[349788339,1737430249639,-194.85214388,0.00019452,2]
[349788340,1737430249649,-500.0,0.00019726,2]
[349788341,1737430249658,-500.0,0.0002,2]
[349788342,1737430249667,-294.56132346,0.00020273,2]
[349788343,1737430249798,-509.8840608,0.00019178,2]
[349788344,1737430249807,-159.573843,0.00019178,2]
[349788345,1737430249815,-150.2166346,0.00019452,2]
[349788346,1737430249874,-503.09969464,0.00019178,2]
[349788347,1737430249886,-0.03970881,0.00019452,2]
[349788348,1737430249897,-9.31749959,0.00019452,2]
[349788349,1737430249907,-159.573843,0.0002,2]
[349788350,1737430249917,-13.97852238,0.00020273,2]
[349788351,1737430249926,-145.91013455,0.00020273,2]
[349788353,1737431006489,1224.0,0.00024,90]
[349788354,1737431225105,-168.8,0.00015135,2]
[349788355,1737431225128,-151.24,0.00017824,2]
[349788356,1737431225149,-66.50811203,0.00017851,2]
[349788357,1737431243160,-265.81901751,0.00017761,2]
[349788358,1737431247092,-785.59930893,0.00017761,2]
[349788359,1737431247113,-1051.41832642,0.00017765,2]
[349788360,1737431247134,-138.57602308,0.00017851,2]
[349788361,1737431257874,209.09,0.00010137,2]
[349788363,1737431347087,-580.4168188,0.00017732,2]
[349788364,1737431356090,-143.6831812,0.00017732,2]
[349788365,1737431356111,-356.7615725,0.00017851,2]
[349788366,1737431357104,-440.41429239,0.00017851,2]
[349788367,1737431357127,-289.13739247,0.00017861,2]
[349788368,1737431357150,-594.86,0.00017865,2]
[349788369,1737431357172,-12796.88527588,0.00017884,2]
[349788370,1737431357194,-3185.16,0.00017884,2]
[349788371,1737431357218,-250.25,0.00017968,2]
[349788372,1737431357240,-300.08,0.00018001,2]
[349788373,1737431357263,-250.0,0.00018063,2]
[349788374,1737431357287,-171.77,0.00018082,2]
[349788375,1737431357310,-250.0,0.00018134,2]
[349788376,1737431357336,-776.33,0.0001822,30]
[349788377,1737431357373,-1000.0,0.00018246,2]
[349788378,1737431357397,-250.0,0.000183,2]
[349788379,1737431357422,-12404.59,0.00018383,2]
[349788380,1737431357444,-1598.60015926,0.00018436,2]
[349788396,1737431432323,-168.8,0.00014767,2]
[349788397,1737431432333,-603.3419729,0.00017616,2]
[349788429,1737431438131,-6.6580271,0.00017616,2]
[349788430,1737431438141,-313.72,0.0001839,2]
[349788431,1737431438150,-2290.58,0.00018455,2]
[349788432,1737431438159,-23900.0,0.00018458,2]
[349788433,1737431438169,-1000.36,0.00018496,2]
[349788434,1737431438178,-825.819,0.00018564,2]
[349788435,1737431438187,-172.17,0.00018601,2]
[349788436,1737431438196,-500.0,0.0001863,2]
[349788437,1737431438205,-692.65,0.00018786,2]
[349788438,1737431438214,-370.0,0.00018814,2]
[349788439,1737431438223,-27060.0,0.00018815,2]
[349788440,1737431438234,-558.51,0.00018919,2]
[349788442,1737431438243,-4771.0128,0.00018978,2]
[349788444,1737431438252,-1266.8366,0.00018978,2]
[349788445,1737431438262,-3506.8593,0.00018978,2]
[349788446,1737431438272,-1045.5009,0.00018978,2]
[349788447,1737431438282,-21948.61484313,0.00019078,2]
[349788448,1737431438291,-15097.33547237,0.00019078,2]
[349788449,1737431438300,-3398.3877,0.00019078,2]
[349788450,1737431438310,-565.8427,0.00019078,2]
[349788451,1737431438319,-505.28020279,0.00019178,2]
[349788452,1737431438328,-500.0,0.00019178,2]
[349788453,1737431438337,-504.42674643,0.00019178,2]
[349788454,1737431438346,-500.0,0.00019178,2]
[349788455,1737431438355,-503.59872453,0.00019178,2]
[349788456,1737431438364,-500.0,0.00019178,2]
[349788457,1737431438376,-500.0,0.00019178,2]
[349788458,1737431438385,-500.0,0.00019178,2]
[349788459,1737431438395,-332.86049537,0.00019178,2]
[349788460,1737431438405,-500.0,0.00019178,2]
[349788461,1737431438414,-500.0,0.00019178,2]
[349788462,1737431438425,-609.20103781,0.00019178,2]
[349788464,1737431438434,-507.66481303,0.00019178,2]
[349788466,1737431438443,-490.4542005,0.00019178,2]
[349788468,1737431438454,-500.0,0.00019178,2]
[349788470,1737431438464,-514.36641361,0.00019178,2]
[349788472,1737431438472,-500.0,0.00019178,2]
[349788474,1737431438482,-500.0,0.00019178,2]
[349788475,1737431438491,-193.88,0.00019178,2]
[349788476,1737431438500,-500.0,0.00019178,2]
[349788477,1737431438509,-501.89719162,0.00019178,2]
[349788478,1737431438519,-500.0,0.00019178,2]
[349788479,1737431438528,-500.0,0.00019178,2]
[349788480,1737431438538,-500.0,0.00019178,2]
[349788481,1737431438547,-500.0,0.00019178,2]
[349788482,1737431438556,-500.0,0.00019178,2]
[349788483,1737431438566,-502.35504515,0.00019178,2]
[349788484,1737431438575,-500.0,0.00019178,2]
[349788485,1737431438585,-500.0,0.00019178,2]
[349788486,1737431438594,-505.62005127,0.00019178,2]
[349788487,1737431438603,-511.39253591,0.00019178,2]
[349788488,1737431438613,-500.0,0.00019178,2]
[349788489,1737431438623,-504.49594664,0.00019178,2]
[349788490,1737431438632,-504.220697,0.00019178,2]
[349788491,1737431438642,-500.0,0.00019178,2]
[349788492,1737431438652,-500.0,0.00019178,2]
[349788493,1737431438661,-244.07859055,0.00019178,2]
[349788494,1737431438670,-500.0,0.00019178,2]
[349788495,1737431438679,-500.0,0.00019178,2]
[349788496,1737431438689,-500.0,0.00019178,2]
[349788497,1737431438698,-500.0,0.00019178,2]
[349788498,1737431438708,-500.00000001,0.00019178,2]
[349788499,1737431438718,-2605.56,0.00019178,2]
[349788500,1737431438728,-507.06,0.00019178,2]
[349788501,1737431438737,-500.0,0.00019178,2]
[349788502,1737431438747,-500.0,0.00019178,2]
[349788503,1737431438756,-512.52384005,0.00019178,2]
[349788504,1737431438765,-500.0,0.00019178,2]
[349788505,1737431438776,-500.0,0.00019178,2]
[349788506,1737431438786,-500.0,0.00019178,2]
[349788507,1737431438795,-500.0,0.00019178,2]
[349788508,1737431438804,-500.0,0.00019178,2]
[349788509,1737431438813,-161.12690394,0.00019178,2]
[349788510,1737431438823,-500.0,0.00019178,2]
[349788511,1737431438832,-500.0,0.00019178,2]
[349788512,1737431438842,-500.0,0.00019178,2]
[349788513,1737431438851,-500.0,0.00019178,2]
[349788514,1737431438860,-500.0,0.00019178,2]
[349788515,1737431438869,-500.0,0.00019178,2]
[349788516,1737431438879,-510.11831722,0.00019178,2]
[349788517,1737431438888,-244.64471872,0.00019178,2]
[349788518,1737431438897,-500.0,0.00019178,2]
[349788519,1737431438906,-500.0,0.00019178,2]
[349788520,1737431438916,-500.0,0.00019178,2]
[349788521,1737431438925,-500.0,0.00019178,2]
[349788522,1737431438936,-500.0,0.00019178,2]
[349788523,1737431438945,-500.0,0.00019178,2]
[349788524,1737431438955,-500.0,0.00019178,2]
[349788525,1737431438965,-500.0,0.00019178,2]
[349788526,1737431438974,-500.0,0.00019178,2]
[349788527,1737431438984,-500.0,0.00019178,2]
[349788528,1737431438993,-500.0,0.00019178,2]
[349788529,1737431439002,-500.0,0.00019178,2]
[349788530,1737431439011,-500.0,0.00019178,2]
[349788531,1737431439020,-643.06,0.00019178,2]
[349788532,1737431439030,-500.0,0.00019178,2]
[349788533,1737431439039,-584.92826417,0.00019178,2]
[349788534,1737431439048,-500.0,0.00019178,2]
[349788535,1737431439057,-502.33141178,0.00019178,2]
[349788536,1737431439066,-500.0,0.00019178,2]
[349788537,1737431439075,-500.0,0.00019178,2]
[349788538,1737431439084,-202.68955737,0.00019178,2]
[349788539,1737431439094,-500.0,0.00019178,2]
[349788540,1737431439103,-500.0,0.00019178,2]
[349788541,1737431439112,-515.73344942,0.00019178,2]
[349788542,1737431439121,-500.0,0.00019178,2]
[349788543,1737431439130,-500.0,0.00019178,2]
[349788544,1737431439141,-500.0,0.00019178,2]
[349788545,1737431439151,-804.89,0.00019178,2]
[349788546,1737431439160,-500.0,0.00019178,2]
[349788547,1737431439169,-500.0,0.00019178,2]
[349788548,1737431439179,-566.64894559,0.00019178,2]
[349788549,1737431439188,-500.0,0.00019178,2]
[349788550,1737431439197,-500.0,0.00019178,2]
[349788551,1737431439206,-500.0,0.00019178,2]
[349788552,1737431439215,-500.0,0.00019178,2]
[349788553,1737431439224,-509.75942582,0.00019178,2]
[349788554,1737431439234,-500.0,0.00019178,2]
[349788555,1737431439243,-500.0,0.00019178,2]
[349788556,1737431439252,-500.0,0.00019178,2]
[349788557,1737431439261,-500.0,0.00019178,2]
[349788558,1737431439270,-515.08856061,0.00019178,2]
[349788559,1737431439280,-512.95102902,0.00019178,2]
[349788560,1737431439289,-500.0,0.00019178,2]
[349788561,1737431439298,-500.0,0.00019178,2]
[349788562,1737431439307,-512.72749374,0.00019178,2]
[349788563,1737431439317,-500.0,0.00019178,2]
[349788564,1737431439326,-500.0,0.00019178,2]
[349788565,1737431439336,-500.0,0.00019178,2]
[349788566,1737431439345,-500.0,0.00019178,2]
[349788567,1737431439354,-500.0,0.00019178,2]
[349788568,1737431439363,-500.0,0.00019178,2]
[349788569,1737431439377,-500.0,0.00019178,2]
[349788570,1737431439386,-500.0,0.00019178,2]
[349788571,1737431439395,-500.0,0.00019178,2]
[349788572,1737431439404,-500.0,0.00019178,2]
[349788573,1737431439414,-500.0,0.00019178,2]
[349788574,1737431439425,-500.0,0.00019178,2]
[349788575,1737431439434,-500.0,0.00019178,2]
[349788576,1737431439443,-500.0,0.00019178,2]
[349788577,1737431439452,-510.24110207,0.00019178,2]
[349788578,1737431439464,-520.25,0.00019178,2]
[349788579,1737431439473,-500.0,0.00019178,2]
[349788580,1737431439482,-500.0,0.00019178,2]
[349788581,1737431439491,-500.0,0.00019178,2]
[349788582,1737431439500,-500.0,0.00019178,2]
[349788583,1737431439510,-500.0,0.00019178,2]
[349788584,1737431439519,-505.32682851,0.00019178,2]
[349788585,1737431439528,-508.46381252,0.00019178,2]
[349788586,1737431439537,-500.0,0.00019178,2]
[349788587,1737431439546,-529.92604311,0.00019178,2]
[349788588,1737431439555,-500.0,0.00019178,2]
[349788589,1737431439573,-514.36654243,0.00019178,2]
[349788590,1737431439584,-250.80157353,0.00019178,2]
[349788591,1737431439594,-500.0,0.00019178,2]
[349788592,1737431439604,-500.0,0.00019178,2]
[349788593,1737431439613,-500.0,0.00019178,2]